bitfinex/quotes_SOLUSD_20241102
["timestamp","ask_amount","ask_price","bid_price","bid_amount"]
[1730514748902,8.6545448,168.38,168.33,8.6545448]
[1730514749324,8.6545448,168.37,168.33,8.6545448]
[1730514750339,8.6545448,168.37,168.33,14.5950448]
[1730514753905,8.6545448,168.37,168.32,8.6545448]
[1730514754520,14.5938448,168.37,168.32,8.6545448]
[1730514755518,14.5938448,168.37,168.33,5.9407]
[1730514756439,14.5938448,168.37,168.32,8.6545448]
[1730514756440,8.6545448,168.36,168.32,14.5954448]
[1730514757830,8.6545448,168.37,168.32,14.5954448]
[1730514760533,8.6545448,168.37,168.32,29.4480448]
[1730514761234,14.5934448,168.38,168.32,29.4480448]
[1730514771637,8.6545448,168.37,168.32,29.4480448]
[1730514774523,5.9389,168.38,168.32,29.4480448]
[1730514774524,14.5934448,168.38,168.32,29.4480448]
[1730514774724,8.6545448,168.41,168.29,0.12549]
[1730514774916,8.6545448,168.41,168.36,8.6545448]
[1730514775839,8.6545448,168.41,168.37,8.6545448]
[1730514777336,5.9375,168.42,168.37,8.6545448]
[1730514777337,14.5920448,168.42,168.37,14.5935448]
[1730514778949,8.6545448,168.4,168.35,14.5944448]
[1730514779259,8.6545448,168.39,168.35,5.9399]
[1730514779770,8.6545448,168.38,168.34,5.9402]
[1730514779954,8.6545448,168.36,168.33,20.7924]
[1730514780852,8.6545448,168.35,168.31,5.9412]
[1730514781526,8.6545448,168.32,168.26,8.6545448]
[1730514781727,8.6545448,168.32,168.27,14.5970448]
[1730514781955,8.6545448,168.36,168.31,8.6545448]
[1730514782136,8.6545448,168.36,168.32,8.6545448]
[1730514782342,24.1418448,168.37,168.32,8.6545448]
[1730514783050,24.1418448,168.37,168.32,14.5952448]
[1730514783239,8.6545448,168.39,168.34,8.6545448]
[1730514784032,8.6545448,168.38,168.34,8.6545448]
[1730514784232,8.6545448,168.38,168.34,14.5946448]
[1730514787963,8.6545448,168.38,168.33,8.6545448]
[1730514788258,8.6545448,168.38,168.29,20.7974]
[1730514788259,8.6545448,168.35,168.31,8.6545448]
[1730514789333,34.7181792,168.4,168.31,8.6545448]
[1730514789334,14.5930448,168.4,168.34,8.6545448]
[1730514789530,5.9385,168.4,168.36,8.6545448]
[1730514789954,14.5930448,168.4,168.35,8.6545448]
[1730514790347,5.9385,168.4,168.36,8.6545448]
[1730514791553,14.5930448,168.4,168.35,14.5943448]
[1730514792653,8.6545448,168.39,168.34,23.5051448]
[1730514792856,8.6545448,168.37,168.34,14.8506]
[1730514793065,8.6545448,168.36,168.32,5.9408]
[1730514793443,8.6545448,168.36,168.31,29.4492448]
[1730514797442,8.6545448,168.35,168.31,29.4492448]
[1730514797648,8.6545448,168.35,168.31,20.7947]
[1730514797843,8.6545448,168.34,168.3,8.6545448]
[1730514798161,8.6545448,168.33,168.29,14.5962448]
[1730514798361,8.6545448,168.33,168.29,5.9417]
[1730514798547,8.6545448,168.33,168.28,20.77335226]
[1730514798753,8.6545448,168.33,168.28,14.5969448]
[1730514799350,8.6545448,168.32,168.28,5.9424]
[1730514801064,14.5953448,168.33,168.28,8.6545448]
[1730514802357,14.5953448,168.33,168.28,14.5968448]
[1730514803846,8.6545448,168.32,168.28,5.9423]
[1730514806278,8.6545448,168.35,168.3,8.6545448]
[1730514807768,8.6545448,168.34,168.29,8.6545448]
[1730514809764,8.6545448,168.34,168.3,5.9417]
[1730514810276,8.6545448,168.32,168.29,20.797]
[1730514810653,8.6545448,168.33,168.29,20.797]
[1730514814977,25.2567448,168.36,168.31,8.6545448]
[1730514815676,14.9447448,168.37,168.32,8.6545448]
[1730514816069,20.8841448,168.37,168.32,8.6545448]
[1730514818661,14.5935448,168.38,168.33,8.6545448]
[1730514819191,14.5935448,168.38,168.33,14.5951448]
[1730514819762,8.6545448,168.37,168.33,5.9406]
[1730514820167,8.6545448,168.38,168.33,29.4468448]
[1730514820381,30.4180448,168.4,168.34,8.6545448]
[1730514820679,30.4180448,168.4,168.33,20.7923]
[1730514820680,8.6545448,168.41,168.36,8.6545448]
[1730514820886,14.5920448,168.42,168.36,8.6545448]
[1730514821379,14.5920448,168.42,168.37,8.6545448]
[1730514821867,78.6545448,168.43,168.37,8.6545448]
[1730514822072,8.6545448,168.43,168.38,8.6545448]
[1730514822291,30.4169448,168.44,168.39,14.5930448]
[1730514824657,8.6545448,168.43,168.38,8.6545448]
[1730514825567,14.5920448,168.42,168.37,14.5937448]
[1730514825881,8.6545448,168.42,168.37,14.5937448]
[1730514826259,14.5917448,168.43,168.37,14.5937448]
[1730514826880,14.5917448,168.43,168.37,29.4419448]
[1730514829865,8.6545448,168.4,168.35,8.6545448]
[1730514831172,14.5928448,168.4,168.35,8.6545448]
[1730514831572,8.6545448,168.39,168.34,14.5946448]
[1730514831774,8.6545448,168.43,168.37,8.6545448]
[1730514831963,85.8253,168.44,168.37,8.6545448]
[1730514831964,8.6545448,168.42,168.37,8.6545448]
[1730514832166,8.6545448,168.41,168.36,8.6545448]
[1730514833077,14.5926448,168.41,168.36,8.6545448]
[1730514836594,14.5926448,168.41,168.36,14.5940448]
[1730514836777,8.6545448,168.4,168.35,14.5944448]
[1730514836975,8.6545448,168.4,168.35,8.6545448]
[1730514837772,14.5930448,168.39,168.34,29.4454448]
[1730514837977,8.6545448,168.38,168.34,14.8508]
[1730514838783,8.6545448,168.38,168.34,20.7911]
[1730514841394,5.9385,168.39,168.34,8.6545448]
[1730514841395,8.6545448,168.39,168.34,8.6545448]
[1730514842397,8.6545448,168.39,168.35,8.6545448]
[1730514843412,14.5931448,168.39,168.35,8.6545448]
[1730514844003,14.5931448,168.39,168.34,14.5946448]
[1730514850105,14.5931448,168.39,168.34,8.6545448]
[1730514850303,8.6545448,168.39,168.35,8.6545448]
[1730514850511,8.6545448,168.39,168.34,23.5053448]
[1730514851412,14.5931448,168.39,168.34,29.4456448]
[1730514851990,8.6545448,168.38,168.34,29.4456448]
[1730514852802,14.5937448,168.38,168.33,8.6545448]
[1730514853685,14.5937448,168.38,168.34,8.6545448]
[1730514854800,14.5937448,168.38,168.34,14.5948448]
[1730514857816,8.6545448,168.42,168.37,8.6545448]
[1730514858002,8.6545448,168.42,168.38,8.6545448]
[1730514858313,8.6545448,168.42,168.37,8.6545448]
[1730514858909,14.5920448,168.42,168.37,14.5936448]
[1730514860113,8.6545448,168.41,168.37,14.5936448]
[1730514861608,8.6545448,168.41,168.37,29.4418448]
[1730514867224,8.6545448,168.41,168.37,14.8482]
[1730514868316,8.6545448,168.41,168.37,20.7875]
[1730514874516,8.6545448,168.41,168.37,14.8482]
[1730514874731,8.6545448,168.4,168.37,20.7875]
[1730514875014,8.6545448,168.43,168.38,8.6545448]
[1730514875215,8.6545448,168.43,168.37,29.4420448]
[1730514875904,8.6545448,168.42,168.37,29.4420448]
[1730514876416,8.6545448,168.41,168.37,14.8482]
[1730514876621,8.6545448,168.41,168.37,23.5027448]
[1730514876925,8.6545448,168.42,168.37,23.5027448]
[1730514877416,8.6545448,168.42,168.38,8.6545448]
[1730514877805,8.6545448,168.42,168.38,5.9387]
[1730514881601,30.4167448,168.44,168.39,8.6545448]
[1730514881807,20.7856448,168.45,168.4,8.6545448]
[1730514882019,14.5910448,168.45,168.4,8.6545448]
[1730514882711,8.6545448,168.46,168.41,8.6545448]
[1730514883026,14.5907448,168.46,168.41,8.6545448]
[1730514885035,8.6545448,168.45,168.4,8.6545448]
[1730514886408,14.5910448,168.45,168.4,14.5926448]
[1730514891022,8.6545448,168.44,168.39,8.6545448]
[1730514892526,8.6545448,168.44,168.4,5.9382]
[1730514893130,8.6545448,168.46,168.4,29.4383448]
[1730514893429,14.5902448,168.47,168.42,8.6545448]
[1730514894322,8.6545448,168.46,168.41,8.6545448]
[1730514894521,8.6545448,168.45,168.4,8.6545448]
[1730514895639,14.5912448,168.45,168.4,14.5927448]
[1730514896427,8.6545448,168.44,168.4,5.9382]
[1730514897037,14.5912448,168.45,168.4,14.5927448]
[1730514899712,8.6545448,168.46,168.4,14.5927448]
[1730514899935,5.9357,168.47,168.43,8.6545448]
[1730514900321,5.9357,168.47,168.42,8.6545448]
[1730514900720,5.9357,168.47,168.43,8.6545448]
[1730514900928,21.5774,168.48,168.43,14.5913448]
[1730514902035,30.2319448,168.48,168.43,5.9368]
[1730514902220,8.6545448,168.47,168.42,23.4976448]
[1730514902420,8.6545448,168.46,168.42,14.8431]
[1730514903341,14.5907448,168.46,168.42,14.8431]
[1730514904229,5.9362,168.46,168.42,14.8431]
[1730514904943,5.9362,168.46,168.42,23.4976448]
[1730514906438,5.9357,168.47,168.42,23.4976448]
[1730514910633,5.9357,168.47,168.43,8.6545448]
[1730514912347,14.5902448,168.47,168.42,23.4976448]
[1730514912729,5.9357,168.47,168.43,8.6545448]
[1730514913552,76.096,168.49,168.45,8.6545448]
[1730514913553,5.9352,168.49,168.45,8.6545448]
[1730514914550,14.5897448,168.49,168.44,8.6545448]
[1730514915552,14.5897448,168.49,168.44,14.5912448]
[1730514915736,5.9352,168.49,168.45,8.6545448]
[1730514916753,14.5897448,168.49,168.44,8.6545448]
[1730514919137,8.6545448,168.48,168.43,29.4342448]
[1730514919657,14.5902448,168.48,168.43,29.4342448]
[1730514921055,5.9357,168.48,168.44,8.6545448]
[1730514923151,8.6545448,168.49,168.44,8.6545448]
[1730514923355,14.5892448,168.5,168.45,8.6545448]
[1730514925542,8.6545448,168.49,168.44,8.6545448]
[1730514928545,14.5897448,168.49,168.44,14.5913448]
[1730514931253,5.9352,168.49,168.45,8.6545448]
[1730514931957,14.5895448,168.5,168.45,8.6545448]
[1730514935639,8.6545448,168.49,168.44,8.6545448]
[1730514937543,8.6545448,168.47,168.42,23.4983448]
[1730514938761,5.9361,168.46,168.42,23.4983448]
[1730514938964,5.9361,168.46,168.42,8.6545448]
[1730514939843,14.5906448,168.46,168.41,8.6545448]
[1730514940039,5.9361,168.46,168.42,8.6545448]
[1730514940350,14.5906448,168.46,168.41,8.6545448]
[1730514941349,8.6545448,168.45,168.4,8.6545448]
[1730514941946,8.6545448,168.48,168.43,8.6545448]
[1730514942145,8.6545448,168.51,168.45,8.6545448]
[1730514942766,8.6545448,168.5,168.45,8.6545448]
[1730514943457,14.5895448,168.5,168.45,8.6545448]
[1730514944061,8.6545448,168.49,168.44,8.6545448]
[1730514945375,5.9354,168.48,168.44,8.6545448]
[1730514946751,14.5899448,168.48,168.43,23.4971448]
[1730514950874,8.6545448,168.49,168.43,23.4971448]
[1730514951771,5.9354,168.48,168.43,23.4971448]
[1730514952265,14.5899448,168.48,168.43,23.4971448]
[1730514954067,8.6545448,168.47,168.42,8.6545448]
[1730514955264,14.5903448,168.47,168.42,14.5919448]
[1730514958371,8.6545448,168.46,168.41,14.5922448]
[1730514961551,14.5906448,168.46,168.41,14.5922448]
[1730514963165,14.5906448,168.46,168.41,8.6545448]
[1730514964159,15.8253,168.48,168.41,8.6545448]
[1730514964160,5.9359,168.47,168.43,8.6545448]
[1730514964364,8.6545448,168.5,168.41,14.8447]
[1730514964551,8.6545448,168.51,168.46,8.6545448]
[1730514964754,24.4798448,168.52,168.47,8.6545448]
[1730514964974,14.9372448,168.53,168.48,8.6545448]
[1730514965273,5.9337,168.53,168.49,8.6545448]
[1730514965576,14.5876448,168.55,168.5,8.6545448]
[1730514966656,30.4125448,168.56,168.51,8.6545448]
[1730514967461,5.9327,168.56,168.52,8.6545448]
[1730514969763,14.5872448,168.56,168.5,8.6545448]
[1730514970878,14.5872448,168.56,168.51,8.6545448]
[1730514974981,8.6545448,168.55,168.5,8.6545448]
[1730514976275,14.5875448,168.55,168.5,14.5891448]
[1730514980084,14.5875448,168.55,168.51,8.6545448]
[1730514983894,14.5875448,168.55,168.51,6.1545448]
[1730514986271,14.5875448,168.55,168.5,8.6545448]
[1730514987272,14.5875448,168.55,168.5,14.5891448]
[1730514988894,8.6545448,168.58,168.54,8.6545448]
[1730514989087,14.5860448,168.59,168.54,8.6545448]
[1730514989396,8.6545448,168.58,168.53,8.6545448]
[1730514990193,8.6545448,168.57,168.52,8.6545448]
[1730514990798,8.6545448,168.55,168.5,8.6545448]
[1730514990985,5.9322,168.57,168.49,8.6545448]
[1730514990986,8.6545448,168.54,168.49,8.6545448]
[1730514992680,20.7628,168.57,168.5,8.6545448]
[1730514992681,8.6545448,168.55,168.5,8.6545448]
[1730514992883,5.9333,168.54,168.5,8.6545448]
[1730515002083,8.6545448,168.53,168.48,23.4922448]
[1730515002289,8.6545448,168.52,168.48,14.8377]
[1730515003383,8.6545448,168.53,168.48,23.4922448]
[1730515006603,14.5884448,168.53,168.48,23.4922448]
[1730515010208,0.1,168.59,168.48,23.4922448]
[1730515010209,8.6545448,168.65,168.54,0.35098]
[1730515010394,8.6545448,168.65,168.59,8.6545448]
[1730515010583,8.6545448,168.65,168.6,8.6545448]
[1730515011401,8.6545448,168.65,168.6,14.5856448]
[1730515013805,178.5287,168.67,168.61,8.6545448]
[1730515013806,8.6545448,168.66,168.61,8.6545448]
[1730515014390,8.6545448,168.64,168.59,8.6545448]
[1730515014589,8.6545448,168.63,168.58,23.4834448]
[1730515015805,8.6545448,168.63,168.58,29.4153448]
[1730515015998,8.6545448,168.64,168.58,29.4153448]
[1730515016196,8.6545448,168.64,168.59,8.6545448]
[1730515016594,8.6545448,168.64,168.59,14.5858448]
[1730515018809,8.6545448,168.62,168.58,14.8289]
[1730515020103,8.6545448,168.61,168.58,14.8289]
[1730515021314,8.6545448,168.61,168.56,8.6545448]
[1730515021499,8.6545448,168.6,168.55,29.4196448]
[1730515022794,8.6545448,168.59,168.55,20.7651]
[1730515023805,8.6545448,168.58,168.53,8.6545448]
[1730515024208,8.6545448,168.57,168.53,5.9334]
[1730515024414,8.6545448,168.57,168.52,14.8348]
[1730515024415,8.6545448,168.55,168.52,14.8348]
[1730515026800,8.6545448,168.54,168.49,8.6545448]
[1730515028218,8.6545448,168.54,168.49,14.5893448]
[1730515028799,8.6545448,168.53,168.49,5.9348]
[1730515029118,8.6545448,168.53,168.49,20.7724]
[1730515029497,8.6545448,168.54,168.49,29.4269448]
[1730515030719,55.19550079,168.7,168.52,16.6153]
[1730515030906,8.6545448,168.65,168.6,8.6545448]
[1730515031424,8.6545448,168.65,168.54,0.47647]
[1730515031727,8.6545448,168.65,168.59,8.6545448]
[1730515031927,8.6545448,168.65,168.6,5.9311]
[1730515032114,8.6545448,168.65,168.6,14.5856448]
[1730515032823,8.6545448,168.65,168.6,29.4135448]
[1730515034232,5.9287,168.67,168.61,8.6545448]
[1730515034233,8.6545448,168.67,168.61,8.6545448]
[1730515034435,8.6545448,168.68,168.62,8.6545448]
[1730515035315,8.6545448,168.67,168.62,8.6545448]
[1730515035524,8.6545448,168.68,168.62,29.4108448]
[1730515036034,8.6545448,168.68,168.63,8.6545448]
[1730515037306,8.6545448,168.68,168.64,5.9297]
[1730515038619,8.6545448,168.68,168.64,8.6545448]
[1730515040734,8.6545448,168.68,168.64,14.5841448]
[1730515041133,8.6545448,168.68,168.64,5.9296]
[1730515041511,8.6545448,168.65,168.61,20.0]
[1730515042835,8.6545448,168.65,168.61,25.9305]
[1730515043839,8.6545448,168.64,168.6,23.4824448]
[1730515044022,8.6545448,168.64,168.6,20.759]
[1730515045316,8.6545448,168.63,168.6,20.759]
[1730515047533,8.6545448,168.63,168.59,8.6545448]
[1730515047740,8.6545448,168.62,168.57,23.4848448]
[1730515047929,8.6545448,168.61,168.57,23.4848448]
[1730515048130,8.6545448,168.61,168.57,14.8303]
[1730515049935,8.6545448,168.58,168.54,8.6545448]
[1730515050325,8.6545448,168.57,168.53,8.6545448]
[1730515051040,8.6545448,168.6,168.55,8.6545448]
[1730515051334,8.6545448,168.6,168.53,8.6545448]
[1730515051335,8.6545448,168.58,168.53,8.6545448]
[1730515052133,8.6545448,168.57,168.53,8.6545448]
[1730515053642,8.6545448,168.57,168.53,14.5880448]
[1730515055153,8.6545448,168.57,168.49,6.19213665]
[1730515055154,8.6545448,168.57,168.52,8.6545448]
[1730515055325,14.5867448,168.57,168.52,8.6545448]
[1730515056127,8.6545448,168.57,168.52,8.6545448]
[1730515057545,8.6545448,168.57,168.52,14.5883448]
[1730515059420,8.6545448,168.56,168.52,8.6545448]
[1730515059627,8.6545448,168.54,168.5,8.6545448]
[1730515060341,8.6545448,168.54,168.49,29.4269448]
[1730515061037,8.6545448,168.54,168.5,8.6545448]
[1730515063947,8.6545448,168.54,168.5,14.5891448]
[1730515064147,14.5880448,168.54,168.49,29.4271448]
[1730515065049,8.6545448,168.53,168.48,8.6545448]
[1730515065449,8.6545448,168.52,168.48,8.6545448]
[1730515065634,8.6545448,168.53,168.48,8.6545448]
[1730515065950,14.5883448,168.53,168.48,8.6545448]
[1730515066644,8.6545448,168.52,168.47,14.5899448]
[1730515067955,14.5888448,168.52,168.47,14.5899448]
[1730515068156,8.6545448,168.51,168.47,14.5899448]
[1730515068646,8.6545448,168.5,168.45,23.4948448]
[1730515068950,8.6545448,168.5,168.45,29.4309448]
[1730515071632,14.5890448,168.51,168.46,8.6545448]
[1730515073428,14.5890448,168.51,168.47,8.6545448]
[1730515076355,5.9345,168.51,168.48,8.6545448]
[1730515076752,23.8394448,168.52,168.48,8.6545448]
[1730515076960,21.119,168.52,168.49,8.6545448]
[1730515079356,21.119,168.52,168.48,8.6545448]
[1730515081455,29.7735448,168.52,168.47,8.6545448]
[1730515082145,21.119,168.52,168.48,8.6545448]
[1730515093462,29.7735448,168.52,168.48,8.6545448]
[1730515094373,5.9341,168.52,168.49,8.6545448]
[1730515096153,8.6545448,168.53,168.48,8.6545448]
[1730515097255,5.934,168.52,168.48,8.6545448]
[1730515098870,8.6545448,168.5,168.45,8.6545448]
[1730515099066,8.6545448,168.49,168.44,28.6545448]
[1730515099453,14.5898448,168.49,168.44,34.5911448]
[1730515101173,14.5898448,168.49,168.44,8.6545448]
[1730515101362,8.6545448,168.48,168.43,29.4345448]
[1730515102072,8.6545448,168.48,168.43,23.4974448]
[1730515103361,14.5901448,168.48,168.43,23.4974448]
[1730515104061,14.5901448,168.48,168.43,8.6545448]
[1730515105449,8.6545448,168.47,168.43,8.6545448]
[1730515106681,5.9357,168.47,168.43,8.6545448]
[1730515107669,20.6145448,168.52,168.46,8.6545448]
[1730515107875,20.6145448,168.52,168.47,8.6545448]
[1730515108061,20.6145448,168.52,168.44,23.902374]
[1730515108062,8.6545448,168.51,168.46,8.6545448]
[1730515108749,5.9347,168.5,168.46,8.6545448]
[1730515109760,8.6545448,168.49,168.44,8.6545448]
[1730515110860,5.9354,168.48,168.44,8.6545448]
[1730515112672,14.5899448,168.48,168.43,23.4974448]
[1730515113381,14.5899448,168.48,168.43,14.8429]
[1730515113777,8.6545448,168.47,168.42,8.6545448]
[1730515113980,8.6545448,168.46,168.41,8.6545448]
[1730515115363,14.5906448,168.46,168.42,5.9375]
[1730515118291,5.9361,168.46,168.42,8.6545448]
[1730515118976,14.5906448,168.46,168.41,8.6545448]
[1730515119486,14.5906448,168.46,168.42,5.9375]
[1730515121383,14.5906448,168.46,168.41,14.5921448]
[1730515122463,14.5906448,168.46,168.41,29.4368448]
[1730515123172,5.9361,168.46,168.42,8.6545448]
[1730515123573,14.5901448,168.48,168.44,8.6545448]
[1730515124084,6.026,168.52,168.47,8.6545448]
[1730515124085,11.9603,168.52,168.47,8.6545448]
[1730515124262,16.4153,168.53,168.49,8.6545448]
[1730515124462,22.3491,168.53,168.49,8.6545448]
[1730515124663,22.3491,168.53,168.48,8.6545448]
[1730515126689,31.0036448,168.53,168.48,8.6545448]
[1730515127574,8.6545448,168.52,168.47,8.6545448]
[1730515129192,5.9343,168.51,168.47,8.6545448]
[1730515136268,5.9343,168.51,168.48,8.6545448]
[1730515136898,5.934,168.52,168.48,8.6545448]
[1730515138389,5.934,168.52,168.47,8.6545448]
[1730515138390,14.5885448,168.52,168.47,8.6545448]
[1730515139579,5.934,168.52,168.48,8.6545448]
[1730515140688,14.5885448,168.52,168.47,8.6545448]
[1730515143598,5.934,168.52,168.48,8.6545448]
[1730515144586,8.6545448,168.51,168.47,8.6545448]
[1730515144784,14.5890448,168.51,168.47,8.6545448]
[1730515146302,8.6545448,168.5,168.46,8.6545448]
[1730515146490,8.6545448,168.49,168.45,23.4948448]
[1730515146677,8.6545448,168.49,168.45,8.6545448]
[1730515146877,8.6545448,168.49,168.44,8.6545448]
[1730515147076,8.6545448,168.49,168.45,8.6545448]
[1730515147392,5.9345,168.51,168.45,8.6545448]
[1730515147393,8.6545448,168.5,168.45,8.6545448]
[1730515148501,8.6545448,168.49,168.45,8.6545448]
[1730515149198,8.6545448,168.5,168.45,8.6545448]
[1730515150592,5.935,168.49,168.45,8.6545448]
[1730515151899,8.6545448,168.49,168.45,8.6545448]
[1730515154508,14.5896448,168.49,168.45,8.6545448]
[1730515155785,14.5896448,168.49,168.44,8.6545448]
[1730515156498,14.5896448,168.49,168.45,8.6545448]
[1730515165806,8.6545448,168.51,168.47,8.6545448]
[1730515166308,8.6545448,168.51,168.46,8.6545448]
[1730515168318,8.6545448,168.5,168.46,8.6545448]
[1730515169411,8.6545448,168.51,168.46,8.6545448]
[1730515171394,8.6545448,168.5,168.46,8.6545448]
[1730515171614,5.935,168.49,168.46,8.6545448]
[1730515174906,14.5885448,168.52,168.47,8.6545448]
[1730515176621,8.6545448,168.51,168.46,8.6545448]
[1730515178523,8.6545448,168.5,168.45,29.4312448]
[1730515179725,14.5894448,168.5,168.45,29.4312448]
[1730515180526,5.9349,168.5,168.46,8.6545448]
[1730515184510,14.5894448,168.5,168.45,23.4951448]
[1730515197005,5.9349,168.5,168.45,23.4951448]
[1730515197209,8.6545448,168.49,168.45,23.4951448]
[1730515199715,14.5896448,168.49,168.45,23.4951448]
[1730515200115,14.5896448,168.49,168.45,29.4315448]
[1730515202740,14.5896448,168.49,168.45,14.8406]
[1730515202918,14.5896448,168.49,168.44,8.6545448]
[1730515203316,14.5896448,168.49,168.45,8.6545448]
[1730515204243,5.9351,168.49,168.46,8.6545448]
[1730515204829,5.9347,168.5,168.46,8.6545448]
[1730515205223,5.9347,168.5,168.47,8.6545448]
[1730515205636,5.9347,168.5,168.46,8.6545448]
[1730515207845,8.6545448,168.51,168.46,8.6545448]
[1730515208045,8.6545448,168.51,168.46,14.5903448]
[1730515208428,14.5890448,168.51,168.46,8.6545448]
[1730515211743,14.5890448,168.51,168.46,14.5906448]
[1730515211928,5.9345,168.51,168.47,8.6545448]
[1730515212128,14.5890448,168.51,168.46,14.5906448]
[1730515213041,14.5890448,168.51,168.46,8.6545448]
[1730515218736,14.5890448,168.51,168.46,14.5905448]
[1730515221329,8.6545448,168.5,168.45,8.6545448]
[1730515221841,8.6545448,168.5,168.46,8.6545448]
[1730515222950,14.5893448,168.5,168.46,8.6545448]
[1730515224145,8.6545448,168.51,168.46,8.6545448]
[1730515228462,5.9347,168.5,168.46,8.6545448]
[1730515228758,8.6545448,168.49,168.44,29.4333448]
[1730515228959,8.6545448,168.49,168.44,23.4965448]
[1730515230046,8.6545448,168.49,168.44,8.6545448]
[1730515230447,5.9357,168.47,168.43,8.6545448]
[1730515231251,14.5902448,168.47,168.42,14.5919448]
[1730515232664,5.9357,168.47,168.43,8.6545448]
[1730515237769,5.9357,168.47,168.44,8.6545448]
[1730515241762,5.9357,168.47,168.41,23.4983448]
[1730515241763,8.6545448,168.46,168.41,23.4983448]
[1730515242371,8.6545448,168.45,168.41,23.4983448]
[1730515243264,8.6545448,168.45,168.41,29.4361448]
[1730515243847,14.5907448,168.46,168.41,29.4361448]
[1730515247877,14.5907448,168.46,168.42,8.6545448]
[1730515248670,14.5907448,168.46,168.41,8.6545448]
[1730515249067,14.5907448,168.46,168.41,14.5922448]
[1730515252588,14.5907448,168.46,168.42,8.6545448]
[1730515252977,14.5907448,168.46,168.41,8.6545448]
[1730515254060,14.5907448,168.46,168.41,14.5922448]
[1730515259259,23.7752448,168.48,168.43,8.6545448]
[1730515259461,21.0563,168.48,168.44,8.6545448]
[1730515259970,29.7108448,168.48,168.44,8.6545448]
[1730515260280,29.7108448,168.48,168.43,8.6545448]
[1730515262861,8.6545448,168.47,168.43,8.6545448]
[1730515263177,8.6545448,168.47,168.42,14.5917448]
[1730515266190,14.5902448,168.47,168.42,14.5917448]
[1730515268580,14.5902448,168.47,168.42,8.6545448]
[1730515288384,15.1207,168.48,168.43,8.6545448]
[1730515288585,14.9789448,168.51,168.45,8.6545448]
[1730515288783,14.5892448,168.5,168.45,8.6545448]
[1730515293080,5.9347,168.5,168.46,8.6545448]
[1730515293288,5.9347,168.5,168.47,8.6545448]
[1730515294698,94.5130448,168.52,168.47,8.6545448]
[1730515294993,5.9344,168.51,168.47,8.6545448]
[1730515298793,14.5889448,168.51,168.47,8.6545448]
[1730515300772,8.6545448,168.54,168.49,8.6545448]
[1730515300976,5.9326,168.56,168.52,8.6545448]
[1730515301280,93.8110448,168.57,168.55,8.6545448]
[1730515301281,15.1565,168.57,168.55,8.6545448]
[1730515301681,15.1565,168.57,168.54,8.6545448]
[1730515302293,21.0888,168.57,168.54,8.6545448]
[1730515306878,8.6545448,168.56,168.51,23.4903448]
[1730515307075,8.6545448,168.56,168.52,8.6545448]
[1730515307287,29.7433448,168.57,168.52,8.6545448]
[1730515307590,21.0888,168.57,168.53,8.6545448]
[1730515307796,21.0888,168.57,168.54,8.6545448]
[1730515307999,21.0888,168.57,168.53,8.6545448]
[1730515316294,14.5862448,168.59,168.55,8.6545448]
[1730515316495,5.9317,168.59,168.56,8.6545448]
[1730515317993,5.9317,168.59,168.55,8.6545448]
[1730515323798,8.6545448,168.58,168.53,8.6545448]
[1730515324197,8.6545448,168.58,168.52,14.8342]
[1730515324198,8.6545448,168.57,168.52,23.4887448]
[1730515325609,14.5870448,168.57,168.52,23.4887448]
[1730515326209,70.0,168.54,168.45,8.654545]
[1730515326418,70.0,168.54,168.46,8.6545448]
[1730515326419,8.6545448,168.51,168.46,8.6545448]
[1730515327633,14.5889448,168.51,168.46,8.6545448]
[1730515328011,8.6545448,168.47,168.42,6.19186073]
[1730515328197,8.6545448,168.46,168.42,6.19186073]
[1730515329407,14.5906448,168.47,168.42,14.84640553]
[1730515333820,8.6545448,168.46,168.42,6.19186073]
[1730515334624,5.9361,168.47,168.42,14.84640553]
[1730515336207,14.5906448,168.47,168.42,14.84640553]
[1730515336906,14.5906448,168.47,168.42,20.78370553]
[1730515340728,14.5906448,168.47,168.43,8.6545448]
[1730515341425,14.5906448,168.47,168.42,20.78370553]
[1730515343424,8.6545448,168.46,168.42,5.9373]
[1730515343611,8.6545448,168.43,168.38,8.6545448]
[1730515343814,8.6545448,168.43,168.38,14.84711348]
[1730515344011,8.6545448,168.43,168.38,8.6545448]
[1730515344708,8.6545448,168.43,168.39,5.9385]
[1730515345912,8.6545448,168.42,168.37,29.4411448]
[1730515346132,8.6545448,168.42,168.37,20.7866]
[1730515346429,8.6545448,168.41,168.37,20.7866]
[1730515347133,8.6545448,168.41,168.37,14.8474]
[1730515347321,14.5926448,168.41,168.37,14.8474]
[1730515348409,14.5926448,168.41,168.36,8.6545448]
[1730515348613,8.6545448,168.4,168.35,8.6545448]
[1730515349916,8.6545448,168.4,168.35,14.5942448]
[1730515350307,8.6545448,168.39,168.35,14.5942448]
[1730515350708,8.6545448,168.38,168.34,14.8507]
[1730515350933,8.6545448,168.38,168.34,20.791]
[1730515351126,8.6545448,168.39,168.34,29.4455448]
[1730515352030,14.5933448,168.39,168.34,29.4455448]